[Event "Titled Tuesday Blitz July 18 Late 2023"]
[White "SicilianPanzer"]
[Black "Koc, Przemyslaw"]
[BlackFideId "1109081"]
[WhiteElo "2265"]
[BlackElo "2550"]
[Result "1-0"]
[Round "1"]
[TimeControl "180+2"]
[Date "2023.07.18"]
[WhiteClock "0:00:10"]
[BlackClock "0:00:09"]
[Board "153"]

1. e4 {[%clk 0:02:58]}  d6 {[%clk 0:03:00]} 2. d4 {[%clk 0:02:58]}  Nf6 {[%clk 0:03:00]} 3. Nc3 {[%clk 0:02:58]}  e5 {[%clk 0:03:01]} 4. Nge2 {[%clk 0:02:52]}  Nc6 {[%clk 0:02:56]} 5. h3 {[%clk 0:02:48]}  Be7 {[%clk 0:02:53]} 6. g3 {[%clk 0:02:47]}  d5 {[%clk 0:02:51]} 7. exd5 {[%clk 0:02:29]}  Nxd5 {[%clk 0:02:49]} 8. dxe5 {[%clk 0:02:21]}  Nxc3 {[%clk 0:02:37]} 9. Qxd8+ {[%clk 0:02:19]}  Bxd8 {[%clk 0:02:38]} 10. Nxc3 {[%clk 0:02:20]}  Nxe5 {[%clk 0:02:38]} 11. Bg2 {[%clk 0:02:19]}  c6 {[%clk 0:02:38]} 12. O-O {[%clk 0:02:19]}  O-O {[%clk 0:02:38]} 13. Re1 {[%clk 0:02:13]}  Nc4 {[%clk 0:02:35]} 14. Ne4 {[%clk 0:01:41]}  Bc7 {[%clk 0:01:55]} 15. b3 {[%clk 0:01:32]}  Nd6 {[%clk 0:01:55]} 16. Ba3 {[%clk 0:01:29]}  Rd8 {[%clk 0:01:51]} 17. Nxd6 {[%clk 0:01:23]}  Bxd6 {[%clk 0:01:51]} 18. Bxd6 {[%clk 0:01:23]}  Bf5 {[%clk 0:01:51]} 19. Bf4 {[%clk 0:01:14]}  Bxc2 {[%clk 0:01:50]} 20. Re7 {[%clk 0:01:13]}  b6 {[%clk 0:01:19]} 21. Rae1 {[%clk 0:01:08]}  h6 {[%clk 0:01:11]} 22. Bxc6 {[%clk 0:01:00]}  Rac8 {[%clk 0:01:11]} 23. Bb5 {[%clk 0:01:00]}  Bf5 {[%clk 0:01:02]} 24. Re8+ {[%clk 0:00:31]}  Rxe8 {[%clk 0:01:02]} 25. Rxe8+ {[%clk 0:00:32]}  Rxe8 {[%clk 0:01:02]} 26. Bxe8 {[%clk 0:00:32]}  Bxh3 {[%clk 0:01:02]} 27. Bd6 {[%clk 0:00:29]}  Be6 {[%clk 0:01:01]} 28. f4 {[%clk 0:00:26]}  g5 {[%clk 0:00:59]} 29. Kf2 {[%clk 0:00:23]}  Kg7 {[%clk 0:00:56]} 30. Ke3 {[%clk 0:00:22]}  Kf6 {[%clk 0:00:56]} 31. Bc6 {[%clk 0:00:21]}  h5 {[%clk 0:00:54]} 32. Be5+ {[%clk 0:00:18]}  Kg6 {[%clk 0:00:54]} 33. Be4+ {[%clk 0:00:16]}  f5 {[%clk 0:00:54]} 34. Bd3 {[%clk 0:00:16]}  h4 {[%clk 0:00:54]} 35. fxg5 {[%clk 0:00:16]}  h3 {[%clk 0:00:52]} 36. g4 {[%clk 0:00:13]}  Kxg5 {[%clk 0:00:52]} 37. gxf5 {[%clk 0:00:13]}  Bxf5 {[%clk 0:00:52]} 38. Bxf5 {[%clk 0:00:13]}  Kxf5 {[%clk 0:00:53]} 39. Bb8 {[%clk 0:00:13]}  a6 {[%clk 0:00:45]} 40. Kd4 {[%clk 0:00:13]}  Ke6 {[%clk 0:00:44]} 41. Bh2 {[%clk 0:00:12]}  Ke7 {[%clk 0:00:42]} 42. Kd5 {[%clk 0:00:12]}  Kd7 {[%clk 0:00:43]} 43. Bg3 {[%clk 0:00:12]}  a5 {[%clk 0:00:09]} 44. a4 {[%clk 0:00:10]} 1-0


[Site "https://www.chess.com"]

[Event "Titled Tuesday Blitz July 18 Late 2023"]
[White "Ezat, Mohamed"]
[Black "Broca Jimenez, Fernando"]
[WhiteFideId "10600906"]
[BlackFideId "5104742"]
[WhiteElo "2548"]
[BlackElo "2260"]
[Result "1-0"]
[Round "1"]
[TimeControl "180+2"]
[Date "2023.07.18"]
[WhiteClock "0:00:23"]
[BlackClock "0:00:02"]
[Board "156"]

1. d4 {[%clk 0:03:00]}  Nf6 {[%clk 0:02:57]} 2. c4 {[%clk 0:03:00]}  e6 {[%clk 0:02:57]} 3. Nc3 {[%clk 0:02:58]}  Bb4 {[%clk 0:02:57]} 4. Bg5 {[%clk 0:02:56]}  c5 {[%clk 0:02:53]} 5. d5 {[%clk 0:02:56]}  exd5 {[%clk 0:02:46]} 6. cxd5 {[%clk 0:02:53]}  d6 {[%clk 0:02:46]} 7. e3 {[%clk 0:02:47]}  Bf5 {[%clk 0:02:33]} 8. Bd3 {[%clk 0:02:33]}  Bxd3 {[%clk 0:02:31]} 9. Qxd3 {[%clk 0:02:33]}  O-O {[%clk 0:02:32]} 10. Ne2 {[%clk 0:02:31]}  Nbd7 {[%clk 0:02:26]} 11. O-O {[%clk 0:02:30]}  Re8 {[%clk 0:02:11]} 12. Ng3 {[%clk 0:02:28]}  Bxc3 {[%clk 0:02:00]} 13. bxc3 {[%clk 0:02:26]}  h6 {[%clk 0:01:39]} 14. Bxf6 {[%clk 0:02:13]}  Qxf6 {[%clk 0:01:34]} 15. c4 {[%clk 0:02:03]}  Ne5 {[%clk 0:01:29]} 16. Qb3 {[%clk 0:02:02]}  Rab8 {[%clk 0:01:21]} 17. a4 {[%clk 0:01:58]}  b6 {[%clk 0:01:19]} 18. h3 {[%clk 0:01:53]}  Qg6 {[%clk 0:01:06]} 19. Rfd1 {[%clk 0:01:40]}  h5 {[%clk 0:01:03]} 20. Kh2 {[%clk 0:01:38]}  h4 {[%clk 0:00:57]} 21. Ne2 {[%clk 0:01:37]}  Qf5 {[%clk 0:00:53]} 22. Kg1 {[%clk 0:01:29]}  Nd7 {[%clk 0:00:33]} 23. Nc3 {[%clk 0:01:21]}  Nf6 {[%clk 0:00:27]} 24. Nb5 {[%clk 0:01:19]}  Qd7 {[%clk 0:00:27]} 25. Qc2 {[%clk 0:01:13]}  a6 {[%clk 0:00:25]} 26. Nc3 {[%clk 0:01:13]}  Qe7 {[%clk 0:00:22]} 27. Rab1 {[%clk 0:01:12]}  Qe5 {[%clk 0:00:20]} 28. Rb3 {[%clk 0:01:10]}  Rb7 {[%clk 0:00:14]} 29. Rdb1 {[%clk 0:01:09]}  b5 {[%clk 0:00:14]} 30. axb5 {[%clk 0:01:08]}  axb5 {[%clk 0:00:15]} 31. Rxb5 {[%clk 0:01:09]}  Rbe7 {[%clk 0:00:15]} 32. Rb8 {[%clk 0:01:08]}  g6 {[%clk 0:00:14]} 33. Rxe8+ {[%clk 0:01:07]}  Rxe8 {[%clk 0:00:14]} 34. Ne2 {[%clk 0:00:58]}  Kg7 {[%clk 0:00:14]} 35. Qc3 {[%clk 0:00:56]}  Qf5 {[%clk 0:00:13]} 36. Rb6 {[%clk 0:00:52]}  Kh7 {[%clk 0:00:10]} 37. Nf4 {[%clk 0:00:44]}  Ne4 {[%clk 0:00:10]} 38. Qc2 {[%clk 0:00:43]}  g5 {[%clk 0:00:10]} 39. Nd3 {[%clk 0:00:41]}  Ra8 {[%clk 0:00:07]} 40. Rb1 {[%clk 0:00:36]}  Kg7 {[%clk 0:00:07]} 41. Rf1 {[%clk 0:00:29]}  Ra3 {[%clk 0:00:06]} 42. Qb2+ {[%clk 0:00:23]}  Rc3 {[%clk 0:00:04]} 43. f3 {[%clk 0:00:23]}  Kg6 {[%clk 0:00:04]} 44. fxe4 {[%clk 0:00:23]}  Qxe4 {[%clk 0:00:03]} 45. Qxc3 {[%clk 0:00:23]}  Qxe3+ {[%clk 0:00:02]} 46. Kh1 {[%clk 0:00:23]} 1-0


[Site "https://www.chess.com"]

[Event "Titled Tuesday Blitz July 18 Late 2023"]
[White "Izuzquiza Gonzalez, Javier"]
[Black "Jessel, Stephen"]
[WhiteFideId "3101029"]
[BlackFideId "628859"]
[WhiteElo "2256"]
[BlackElo "2547"]
[Result "0-1"]
[Round "1"]
[TimeControl "180+2"]
[Date "2023.07.18"]
[WhiteClock "0:00:37"]
[BlackClock "0:00:03"]
[Board "157"]

1. d4 {[%clk 0:02:59]}  e6 {[%clk 0:02:59]} 2. c4 {[%clk 0:02:59]}  b6 {[%clk 0:02:58]} 3. Nf3 {[%clk 0:03:00]}  Bb7 {[%clk 0:02:59]} 4. g3 {[%clk 0:03:00]}  Bb4+ {[%clk 0:02:51]} 5. Bd2 {[%clk 0:02:59]}  Bxf3 {[%clk 0:02:52]} 6. exf3 {[%clk 0:03:00]}  Bxd2+ {[%clk 0:02:52]} 7. Qxd2 {[%clk 0:02:59]}  c6 {[%clk 0:02:52]} 8. Bg2 {[%clk 0:02:59]}  d5 {[%clk 0:02:53]} 9. cxd5 {[%clk 0:02:56]}  cxd5 {[%clk 0:02:52]} 10. O-O {[%clk 0:02:55]}  Ne7 {[%clk 0:02:52]} 11. Nc3 {[%clk 0:02:51]}  O-O {[%clk 0:02:51]} 12. Rac1 {[%clk 0:02:52]}  Nbc6 {[%clk 0:02:51]} 13. f4 {[%clk 0:02:48]}  a6 {[%clk 0:02:40]} 14. Rfd1 {[%clk 0:02:37]}  b5 {[%clk 0:02:39]} 15. f5 {[%clk 0:02:15]}  Nxf5 {[%clk 0:01:26]} 16. Nxb5 {[%clk 0:01:52]}  axb5 {[%clk 0:01:09]} 17. Rxc6 {[%clk 0:01:53]}  Rxa2 {[%clk 0:01:09]} 18. Qb4 {[%clk 0:01:53]}  Ra4 {[%clk 0:00:39]} 19. Qc5 {[%clk 0:01:43]}  Rc4 {[%clk 0:00:33]} 20. Qb6 {[%clk 0:01:12]}  Qxb6 {[%clk 0:00:32]} 21. Rxb6 {[%clk 0:01:13]}  Nxd4 {[%clk 0:00:33]} 22. Bf1 {[%clk 0:01:13]}  Rb4 {[%clk 0:00:32]} 23. Rc1 {[%clk 0:01:04]}  Rxb2 {[%clk 0:00:27]} 24. Rc7 {[%clk 0:00:59]}  g6 {[%clk 0:00:23]} 25. Rbb7 {[%clk 0:00:54]}  b4 {[%clk 0:00:14]} 26. Kg2 {[%clk 0:00:53]}  b3 {[%clk 0:00:13]} 27. Bb5 {[%clk 0:00:52]}  Nxb5 {[%clk 0:00:08]} 28. Rxb5 {[%clk 0:00:53]}  Rc2 {[%clk 0:00:08]} 29. Rcb7 {[%clk 0:00:51]}  Rd8 {[%clk 0:00:07]} 30. Rxb3 {[%clk 0:00:51]}  d4 {[%clk 0:00:05]} 31. Ra7 {[%clk 0:00:46]}  Rc5 {[%clk 0:00:03]} 32. Rbb7 {[%clk 0:00:45]}  Rf5 {[%clk 0:00:03]} 33. f4 {[%clk 0:00:44]}  d3 {[%clk 0:00:03]} 34. Kf2 {[%clk 0:00:37]}  d2 {[%clk 0:00:03]} 0-1


[Site "https://www.chess.com"]

[Event "Titled Tuesday Blitz July 18 Late 2023"]
[White "De Souza, Cristiano Gomes"]
[Black "Rengifo Blancas, Renzo Jhonathan"]
[WhiteFideId "2151758"]
[BlackFideId "3807185"]
[WhiteElo "2239"]
[BlackElo "2536"]
[Result "0-1"]
[Round "1"]
[TimeControl "180+2"]
[Date "2023.07.18"]
[WhiteClock "0:00:16"]
[BlackClock "0:00:36"]
[Board "163"]

1. d4 {[%clk 0:02:58]}  d6 {[%clk 0:02:57]} 2. Nf3 {[%clk 0:02:55]}  Nf6 {[%clk 0:02:57]} 3. c4 {[%clk 0:02:54]}  Nbd7 {[%clk 0:02:55]} 4. Nc3 {[%clk 0:02:54]}  e5 {[%clk 0:02:55]} 5. dxe5 {[%clk 0:02:53]}  dxe5 {[%clk 0:02:56]} 6. e4 {[%clk 0:02:53]}  c6 {[%clk 0:02:56]} 7. Be2 {[%clk 0:02:51]}  Bb4 {[%clk 0:02:55]} 8. Bd2 {[%clk 0:02:43]}  Bxc3 {[%clk 0:02:53]} 9. Bxc3 {[%clk 0:02:43]}  Nxe4 {[%clk 0:02:53]} 10. Bxe5 {[%clk 0:02:34]}  Qa5+ {[%clk 0:02:49]} 11. Bc3 {[%clk 0:02:33]}  Nxc3 {[%clk 0:02:49]} 12. Qd2 {[%clk 0:02:30]}  O-O {[%clk 0:02:43]} 13. Rc1 {[%clk 0:02:26]}  Nf6 {[%clk 0:02:42]} 14. Qxc3 {[%clk 0:02:24]}  Qxc3+ {[%clk 0:02:36]} 15. Rxc3 {[%clk 0:02:23]}  Re8 {[%clk 0:02:36]} 16. Nd2 {[%clk 0:02:16]}  Bf5 {[%clk 0:02:15]} 17. Kd1 {[%clk 0:02:10]}  Rad8 {[%clk 0:02:15]} 18. f3 {[%clk 0:02:02]}  Nh5 {[%clk 0:01:52]} 19. Re1 {[%clk 0:01:50]}  Nf4 {[%clk 0:01:52]} 20. Bf1 {[%clk 0:01:49]}  Rxe1+ {[%clk 0:01:46]} 21. Kxe1 {[%clk 0:01:49]}  h5 {[%clk 0:01:41]} 22. g3 {[%clk 0:01:48]}  Ne6 {[%clk 0:01:37]} 23. Nb3 {[%clk 0:01:39]}  Nd4 {[%clk 0:01:29]} 24. Nxd4 {[%clk 0:01:37]}  Rxd4 {[%clk 0:01:30]} 25. Be2 {[%clk 0:01:35]}  f6 {[%clk 0:01:27]} 26. b3 {[%clk 0:01:34]}  Kf7 {[%clk 0:01:27]} 27. Rc1 {[%clk 0:01:31]}  Rd8 {[%clk 0:01:07]} 28. Rd1 {[%clk 0:01:27]}  Re8 {[%clk 0:01:07]} 29. Kf2 {[%clk 0:01:24]}  g5 {[%clk 0:01:07]} 30. Rd2 {[%clk 0:01:21]}  a5 {[%clk 0:01:04]} 31. a3 {[%clk 0:01:20]}  Re7 {[%clk 0:00:59]} 32. Bd3 {[%clk 0:01:15]}  Be6 {[%clk 0:00:58]} 33. Re2 {[%clk 0:01:12]}  Rd7 {[%clk 0:00:58]} 34. Bc2 {[%clk 0:01:10]}  a4 {[%clk 0:00:56]} 35. Ke3 {[%clk 0:01:02]}  b5 {[%clk 0:00:51]} 36. bxa4 {[%clk 0:00:59]}  Bxc4 {[%clk 0:00:51]} 37. Rd2 {[%clk 0:00:58]}  Ra7 {[%clk 0:00:43]} 38. axb5 {[%clk 0:00:56]}  cxb5 {[%clk 0:00:43]} 39. Kd4 {[%clk 0:00:28]}  Rxa3 {[%clk 0:00:42]} 40. Be4 {[%clk 0:00:22]}  f5 {[%clk 0:00:37]} 41. Bxf5 {[%clk 0:00:20]}  Rxf3 {[%clk 0:00:38]} 42. Be4 {[%clk 0:00:20]}  Rf1 {[%clk 0:00:36]} 43. Kc5 {[%clk 0:00:20]}  Kf6 {[%clk 0:00:34]} 44. Bd5 {[%clk 0:00:20]}  Rf5 {[%clk 0:00:33]} 45. Kd6 {[%clk 0:00:17]}  Rxd5+ {[%clk 0:00:33]} 46. Rxd5 {[%clk 0:00:18]}  Bxd5 {[%clk 0:00:34]} 47. Kxd5 {[%clk 0:00:18]}  Kf5 {[%clk 0:00:35]} 48. Kc5 {[%clk 0:00:18]}  Kg4 {[%clk 0:00:35]} 49. Kxb5 {[%clk 0:00:19]}  Kh3 {[%clk 0:00:36]} 50. Kc5 {[%clk 0:00:20]}  Kxh2 {[%clk 0:00:36]} 51. Kd4 {[%clk 0:00:16]}  Kxg3 {[%clk 0:00:36]} 0-1


[Site "https://www.chess.com"]

[Event "Titled Tuesday Blitz July 18 Late 2023"]
[White "ATM622"]
[Black "Doluhanova, Evgeniya"]
[BlackFideId "14112035"]
[WhiteElo "2535"]
[BlackElo "2237"]
[Result "0-1"]
[Round "1"]
[TimeControl "180+2"]
[Date "2023.07.18"]
[WhiteClock "0:00:01"]
[BlackClock "0:00:21"]
[Board "164"]

1. d4 {[%clk 0:02:59]}  Nf6 {[%clk 0:02:59]} 2. c4 {[%clk 0:02:59]}  e6 {[%clk 0:03:00]} 3. g3 {[%clk 0:02:58]}  d5 {[%clk 0:02:57]} 4. Bg2 {[%clk 0:02:58]}  Bb4+ {[%clk 0:02:57]} 5. Nd2 {[%clk 0:02:58]}  O-O {[%clk 0:02:56]} 6. Qc2 {[%clk 0:02:58]}  c5 {[%clk 0:02:55]} 7. Nf3 {[%clk 0:02:58]}  cxd4 {[%clk 0:02:55]} 8. Nxd4 {[%clk 0:02:58]}  Nc6 {[%clk 0:02:55]} 9. Nxc6 {[%clk 0:02:58]}  bxc6 {[%clk 0:02:55]} 10. O-O {[%clk 0:02:58]}  Ba6 {[%clk 0:02:53]} 11. Rd1 {[%clk 0:02:56]}  Bxd2 {[%clk 0:02:48]} 12. Rxd2 {[%clk 0:02:45]}  Bxc4 {[%clk 0:02:47]} 13. b3 {[%clk 0:02:45]}  Bb5 {[%clk 0:02:36]} 14. a4 {[%clk 0:02:45]}  Ba6 {[%clk 0:02:35]} 15. Qxc6 {[%clk 0:02:45]}  Qc8 {[%clk 0:02:32]} 16. Qxc8 {[%clk 0:02:42]}  Rfxc8 {[%clk 0:02:28]} 17. Bb2 {[%clk 0:02:42]}  Rab8 {[%clk 0:02:27]} 18. Bxf6 {[%clk 0:02:24]}  gxf6 {[%clk 0:02:26]} 19. Rb1 {[%clk 0:02:24]}  Rb4 {[%clk 0:02:26]} 20. e4 {[%clk 0:02:00]}  d4 {[%clk 0:02:19]} 21. Bf1 {[%clk 0:01:58]}  Bxf1 {[%clk 0:02:17]} 22. Kxf1 {[%clk 0:01:59]}  e5 {[%clk 0:02:16]} 23. Rd3 {[%clk 0:01:55]}  Rcb8 {[%clk 0:02:11]} 24. f4 {[%clk 0:01:52]}  Rxa4 {[%clk 0:02:10]} 25. fxe5 {[%clk 0:01:51]}  fxe5 {[%clk 0:02:09]} 26. Kg2 {[%clk 0:01:51]}  Ra2+ {[%clk 0:02:08]} 27. Kh3 {[%clk 0:01:46]}  a5 {[%clk 0:02:07]} 28. Kg4 {[%clk 0:01:40]}  Rb6 {[%clk 0:02:07]} 29. h4 {[%clk 0:01:17]}  a4 {[%clk 0:01:59]} 30. h5 {[%clk 0:00:56]}  Ra3 {[%clk 0:01:56]} 31. Rc1 {[%clk 0:00:40]}  Raxb3 {[%clk 0:01:53]} 32. Rd2 {[%clk 0:00:40]}  Rc3 {[%clk 0:01:51]} 33. Ra1 {[%clk 0:00:37]}  a3 {[%clk 0:01:50]} 34. Kf5 {[%clk 0:00:33]}  Rb5 {[%clk 0:01:47]} 35. g4 {[%clk 0:00:28]}  h6 {[%clk 0:01:45]} 36. Kf6 {[%clk 0:00:26]}  Rf3+ {[%clk 0:01:43]} 37. Ke7 {[%clk 0:00:25]}  Kg7 {[%clk 0:01:43]} 38. Rda2 {[%clk 0:00:23]}  Ra5 {[%clk 0:01:39]} 39. Rg1 {[%clk 0:00:22]}  Rb3 {[%clk 0:01:28]} 40. g5 {[%clk 0:00:21]}  Rb6 {[%clk 0:01:20]} 41. Kd7 {[%clk 0:00:17]}  Ra7+ {[%clk 0:01:17]} 42. Kc8 {[%clk 0:00:17]}  Re6 {[%clk 0:01:12]} 43. Kb8 {[%clk 0:00:14]}  Ra5 {[%clk 0:01:00]} 44. Rf2 {[%clk 0:00:06]}  hxg5 {[%clk 0:00:59]} 45. Rxg5+ {[%clk 0:00:06]}  Kh6 {[%clk 0:00:59]} 46. Rg8 {[%clk 0:00:06]}  Re7 {[%clk 0:00:54]} 47. Rf6+ {[%clk 0:00:02]}  Kh7 {[%clk 0:00:53]} 48. Rg5 {[%clk 0:00:01]}  a2 {[%clk 0:00:52]} 49. h6 {[%clk 0:00:01]}  Rb5+ {[%clk 0:00:49]} 50. Kc8 {[%clk 0:00:01]}  a1=Q {[%clk 0:00:39]} 51. Kd8 {[%clk 0:00:01]}  Qa8+ {[%clk 0:00:22]} 52. Kxe7 {[%clk 0:00:01]}  Qa7+ {[%clk 0:00:22]} 53. Kf8 {[%clk 0:00:01]}  Rb8# {[%clk 0:00:21]} 0-1


[Site "https://www.chess.com"]

[Event "Titled Tuesday Blitz July 18 Late 2023"]
[White "Schachpanda_Youtube"]
[Black "Schekachikhin, Maksim"]
[BlackFideId "24177830"]
[WhiteElo "2236"]
[BlackElo "2535"]
[Result "0-1"]
[Round "1"]
[TimeControl "180+2"]
[Date "2023.07.18"]
[WhiteClock "0:00:00"]
[BlackClock "0:00:31"]
[Board "165"]

1. e4 {[%clk 0:03:00]}  c6 {[%clk 0:02:55]} 2. d4 {[%clk 0:03:00]}  d5 {[%clk 0:02:53]} 3. f3 {[%clk 0:03:00]}  g6 {[%clk 0:02:46]} 4. Nc3 {[%clk 0:02:59]}  Bg7 {[%clk 0:02:46]} 5. Be3 {[%clk 0:02:57]}  Nf6 {[%clk 0:02:36]} 6. e5 {[%clk 0:02:54]}  Nfd7 {[%clk 0:02:36]} 7. f4 {[%clk 0:02:53]}  f6 {[%clk 0:02:28]} 8. Nf3 {[%clk 0:02:50]}  O-O {[%clk 0:02:23]} 9. Qd2 {[%clk 0:02:43]}  Nb6 {[%clk 0:02:21]} 10. O-O-O {[%clk 0:02:37]}  a5 {[%clk 0:02:18]} 11. h4 {[%clk 0:02:33]}  a4 {[%clk 0:02:11]} 12. h5 {[%clk 0:02:31]}  a3 {[%clk 0:02:11]} 13. b3 {[%clk 0:02:30]}  Bg4 {[%clk 0:02:06]} 14. hxg6 {[%clk 0:02:29]}  hxg6 {[%clk 0:02:06]} 15. Bd3 {[%clk 0:02:24]}  Kf7 {[%clk 0:02:02]} 16. Rh4 {[%clk 0:02:08]}  Bxf3 {[%clk 0:01:56]} 17. gxf3 {[%clk 0:02:08]}  Rh8 {[%clk 0:01:56]} 18. Rdh1 {[%clk 0:01:53]}  Rxh4 {[%clk 0:01:51]} 19. Rxh4 {[%clk 0:01:54]}  e6 {[%clk 0:01:51]} 20. f5 {[%clk 0:01:15]}  exf5 {[%clk 0:01:47]} 21. Rh7 {[%clk 0:00:52]}  Kg8 {[%clk 0:01:35]} 22. Qh2 {[%clk 0:00:48]}  N8d7 {[%clk 0:01:34]} 23. Ne2 {[%clk 0:00:19]}  Nf8 {[%clk 0:01:30]} 24. Rxg7+ {[%clk 0:00:10]}  Kxg7 {[%clk 0:01:31]} 25. Qh6+ {[%clk 0:00:10]}  Kf7 {[%clk 0:01:28]} 26. Nf4 {[%clk 0:00:08]}  Qe8 {[%clk 0:01:18]} 27. e6+ {[%clk 0:00:08]}  Kg8 {[%clk 0:00:55]} 28. e7 {[%clk 0:00:06]}  Qxe7 {[%clk 0:00:55]} 29. Nxg6 {[%clk 0:00:05]}  Qg7 {[%clk 0:00:47]} 30. Qxg7+ {[%clk 0:00:02]}  Kxg7 {[%clk 0:00:48]} 31. Ne7 {[%clk 0:00:03]}  Kf7 {[%clk 0:00:42]} 32. Nxf5 {[%clk 0:00:03]}  Ke6 {[%clk 0:00:35]} 33. Bf4 {[%clk 0:00:01]}  Ng6 {[%clk 0:00:32]} 34. Bg3 {[%clk 0:00:00]}  Ne7 {[%clk 0:00:31]} 0-1


[Site "https://www.chess.com"]

[Event "Titled Tuesday Blitz July 18 Late 2023"]
[White "vishwa_vijeta"]
[Black "Sarkar, Justin"]
[BlackFideId "2010011"]
[WhiteElo "2535"]
[BlackElo "2235"]
[Result "1-0"]
[Round "1"]
[TimeControl "180+2"]
[Date "2023.07.18"]
[WhiteClock "0:02:16"]
[BlackClock "0:00:00"]
[Board "166"]

1. e4 {[%clk 0:03:00]}  e5 {[%clk 0:02:58]} 2. Nf3 {[%clk 0:03:00]}  Nc6 {[%clk 0:02:57]} 3. d4 {[%clk 0:02:59]}  exd4 {[%clk 0:02:56]} 4. Bc4 {[%clk 0:02:58]}  Nf6 {[%clk 0:02:47]} 5. Ng5 {[%clk 0:02:55]}  Ne5 {[%clk 0:02:33]} 6. Qxd4 {[%clk 0:02:53]}  Nxc4 {[%clk 0:02:18]} 7. Qxc4 {[%clk 0:02:54]}  d5 {[%clk 0:02:13]} 8. exd5 {[%clk 0:02:55]}  Qxd5 {[%clk 0:02:06]} 9. Qe2+ {[%clk 0:02:54]}  Be7 {[%clk 0:01:51]} 10. O-O {[%clk 0:02:53]}  Bg4 {[%clk 0:01:01]} 11. f3 {[%clk 0:02:53]}  Bh5 {[%clk 0:01:00]} 12. Re1 {[%clk 0:02:53]}  Qd7 {[%clk 0:00:13]} 13. Nc3 {[%clk 0:02:44]}  Kf8 {[%clk 0:00:12]} 14. Bf4 {[%clk 0:02:42]}  Re8 {[%clk 0:00:10]} 15. Qc4 {[%clk 0:02:32]}  h6 {[%clk 0:00:10]} 16. Nge4 {[%clk 0:02:31]}  Nxe4 {[%clk 0:00:08]} 17. Nxe4 {[%clk 0:02:32]}  b6 {[%clk 0:00:02]} 18. Rad1 {[%clk 0:02:32]}  Qe6 {[%clk 0:00:01]} 19. Qxe6 {[%clk 0:02:32]}  fxe6 {[%clk 0:00:01]} 20. Bxc7 {[%clk 0:02:33]}  Rc8 {[%clk 0:00:01]} 21. Bd6 {[%clk 0:02:24]}  Rxc2 {[%clk 0:00:01]} 22. Bxe7+ {[%clk 0:02:22]}  Kxe7 {[%clk 0:00:01]} 23. Nc3 {[%clk 0:02:21]}  Rd8 {[%clk 0:00:01]} 24. Rxd8 {[%clk 0:02:18]}  Kxd8 {[%clk 0:00:01]} 25. Rxe6 {[%clk 0:02:18]}  Rxb2 {[%clk 0:00:01]} 26. Re3 {[%clk 0:02:18]}  Rc2 {[%clk 0:00:01]} 27. Rd3+ {[%clk 0:02:18]}  Kc8 {[%clk 0:00:01]} 28. a3 {[%clk 0:02:17]}  Bf7 {[%clk 0:00:01]} 29. Ne4 {[%clk 0:02:16]}  Bc4 {[%clk 0:00:01]} 30. Rd4 {[%clk 0:02:16]}  b5 {[%clk 0:00:01]} 31. Nd6+ {[%clk 0:02:15]}  Kc7 {[%clk 0:00:02]} 32. Ne8+ {[%clk 0:02:14]}  Kc6 {[%clk 0:00:01]} 33. Nxg7 {[%clk 0:02:15]}  a5 {[%clk 0:00:02]} 34. Nf5 {[%clk 0:02:14]}  b4 {[%clk 0:00:01]} 35. axb4 {[%clk 0:02:15]}  axb4 {[%clk 0:00:01]} 36. Ne3 {[%clk 0:02:15]}  Rc1+ {[%clk 0:00:02]} 37. Kf2 {[%clk 0:02:15]}  Be6 {[%clk 0:00:02]} 38. Rxb4 {[%clk 0:02:15]}  Kc5 {[%clk 0:00:00]} 39. Re4 {[%clk 0:02:16]} 1-0


[Site "https://www.chess.com"]

[Event "Titled Tuesday Blitz July 18 Late 2023"]
[White "Santos Flores, Alberto"]
[Black "De Arruda, Leandro Formes"]
[WhiteFideId "3601234"]
[BlackFideId "22722009"]
[WhiteElo "2532"]
[BlackElo "2227"]
[Result "1-0"]
[Round "1"]
[TimeControl "180+2"]
[Date "2023.07.18"]
[WhiteClock "0:00:28"]
[BlackClock "0:00:03"]
[Board "170"]

1. e4 {[%clk 0:02:59]}  e6 {[%clk 0:03:00]} 2. d4 {[%clk 0:02:59]}  d5 {[%clk 0:03:01]} 3. Nc3 {[%clk 0:02:59]}  dxe4 {[%clk 0:03:01]} 4. Nxe4 {[%clk 0:02:59]}  Nd7 {[%clk 0:03:01]} 5. Nf3 {[%clk 0:02:54]}  Ngf6 {[%clk 0:03:02]} 6. Nxf6+ {[%clk 0:02:54]}  Nxf6 {[%clk 0:03:03]} 7. g3 {[%clk 0:02:45]}  Be7 {[%clk 0:03:03]} 8. Bg2 {[%clk 0:02:45]}  O-O {[%clk 0:03:04]} 9. O-O {[%clk 0:02:45]}  c5 {[%clk 0:03:02]} 10. Bf4 {[%clk 0:02:38]}  Qb6 {[%clk 0:02:59]} 11. b3 {[%clk 0:02:34]}  Rd8 {[%clk 0:02:57]} 12. dxc5 {[%clk 0:02:30]}  Qxc5 {[%clk 0:02:58]} 13. Qe2 {[%clk 0:02:28]}  Nd5 {[%clk 0:02:45]} 14. Be5 {[%clk 0:02:27]}  Bf6 {[%clk 0:02:40]} 15. c4 {[%clk 0:02:16]}  Bxe5 {[%clk 0:02:18]} 16. Qxe5 {[%clk 0:01:59]}  f6 {[%clk 0:02:18]} 17. Qh5 {[%clk 0:01:59]}  g6 {[%clk 0:02:17]} 18. Qh4 {[%clk 0:01:59]}  Nb6 {[%clk 0:01:55]} 19. Qxf6 {[%clk 0:01:58]}  Qf8 {[%clk 0:01:55]} 20. Qxf8+ {[%clk 0:01:49]}  Rxf8 {[%clk 0:01:56]} 21. Ne5 {[%clk 0:01:47]}  Rb8 {[%clk 0:01:50]} 22. Rad1 {[%clk 0:01:45]}  a5 {[%clk 0:01:38]} 23. Rd6 {[%clk 0:01:43]}  Na8 {[%clk 0:01:37]} 24. Rfd1 {[%clk 0:01:36]}  Nc7 {[%clk 0:01:06]} 25. Rd8 {[%clk 0:01:29]}  Na6 {[%clk 0:01:01]} 26. Rxf8+ {[%clk 0:01:18]}  Kxf8 {[%clk 0:01:02]} 27. Rd8+ {[%clk 0:01:19]}  Ke7 {[%clk 0:01:02]} 28. Rh8 {[%clk 0:01:19]}  Kf6 {[%clk 0:00:56]} 29. f4 {[%clk 0:01:18]}  Kg7 {[%clk 0:00:53]} 30. Re8 {[%clk 0:01:14]}  a4 {[%clk 0:00:45]} 31. Re7+ {[%clk 0:01:10]}  Kg8 {[%clk 0:00:42]} 32. Re8+ {[%clk 0:01:05]}  Kg7 {[%clk 0:00:41]} 33. Kf2 {[%clk 0:00:59]}  axb3 {[%clk 0:00:40]} 34. axb3 {[%clk 0:01:00]}  h6 {[%clk 0:00:26]} 35. Ke3 {[%clk 0:00:59]}  g5 {[%clk 0:00:25]} 36. Be4 {[%clk 0:00:50]}  Nc5 {[%clk 0:00:22]} 37. b4 {[%clk 0:00:38]}  gxf4+ {[%clk 0:00:16]} 38. gxf4 {[%clk 0:00:38]}  Nxe4 {[%clk 0:00:15]} 39. Kxe4 {[%clk 0:00:39]}  b6 {[%clk 0:00:15]} 40. Kd4 {[%clk 0:00:37]}  Ra8 {[%clk 0:00:12]} 41. Nd7 {[%clk 0:00:29]}  Ra4 {[%clk 0:00:03]} 42. Rxc8 {[%clk 0:00:28]}  Ra5 {[%clk 0:00:03]} 1-0


[Site "https://www.chess.com"]